bitfinex/quotes_ETHUSD_20250603
["timestamp","ask_amount","ask_price","bid_price","bid_amount"]
[1748963563421,1.841,2637.4,2637.3,3.79175672]
[1748963563822,1.841,2637.4,2637.1,3.79197988]
[1748963564129,1.841,2637.4,2637.3,3.79175672]
[1748963564324,1.841,2637.4,2637.3,4.5501199]
[1748963564466,1.841,2637.4,2637.3,3.79175672]
[1748963565106,1.841,2637.4,2636.5,3.79284141]
[1748963565295,1.841,2637.4,2637.1,3.79195296]
[1748963565866,1.5445,2637.3,2637.0,3.79210972]
[1748963566224,1.5445,2637.3,2637.2,3.7919005]
[1748963566432,1.841,2637.4,2637.2,3.7919005]
[1748963566566,1.5434,2637.5,2637.3,3.79175672]
[1748963566927,0.00457634,2637.6,2637.3,3.79175672]
[1748963567129,8.423,2637.5,2637.3,3.7916493]
[1748963567474,8.423,2637.5,2637.3,3.79166714]
[1748963567833,1.5434,2637.4,2636.4,3.79305113]
[1748963567966,1.5434,2637.4,2637.1,3.79191456]
[1748963568173,1.5434,2637.4,2637.2,3.79185802]
[1748963569078,1.5434,2637.4,2637.2,3.74185802]
[1748963569272,2.6402074,2637.4,2637.2,3.74185802]
[1748963569813,2.6402074,2637.4,2637.1,3.79197314]
[1748963570102,2.6402074,2637.4,2637.2,3.79182081]
[1748963570881,1.0968074,2637.4,2637.2,3.79176183]
[1748963571082,8.422,2637.3,2637.2,3.79181838]
[1748963571707,8.422,2637.3,2637.1,3.79197109]
[1748963572130,8.422,2637.3,2636.0,3.79362181]
[1748963572131,1.4866,2637.2,2636.8,3.79247355]
[1748963572293,0.99086,2637.1,2636.9,3.79232854]
[1748963572610,1.4866,2637.2,2636.9,3.79232854]
[1748963573788,1.4866,2637.2,2637.0,3.79212252]
[1748963578293,1.4866,2637.2,2637.1,3.79204429]
[1748963578500,1.4866,2637.2,2637.0,3.79211098]
[1748963580233,1.4866,2637.2,2636.6,3.79275897]
[1748963580535,8.422,2637.3,2637.1,3.79204429]
[1748963580839,2.1495,2637.5,2637.2,3.7919005]
[1748963581037,8.418,2637.4,2636.6,4.17191922]
[1748963581241,8.418,2637.4,2637.0,3.79208334]
[1748963581563,0.55,2637.3,2636.9,3.79224365]
[1748963582232,0.55,2637.3,2637.0,3.79218511]
[1748963583137,0.55,2637.3,2636.9,3.79225304]
[1748963583299,1.00252076,2637.2,2636.9,3.79225304]
[1748963583497,1.00252076,2637.2,2637.0,3.79216961]
[1748963584212,6.575,2637.1,2637.0,3.79216961]
[1748963584547,6.575,2637.1,2637.0,3.79218809]
[1748963584698,1.841,2637.2,2637.1,3.79204429]
[1748963585035,1.5995,2637.5,2637.2,3.79184712]
[1748963585200,1.834,2637.3,2637.1,3.79197461]
[1748963585396,1.834,2637.3,2637.0,3.79212118]
[1748963585603,1.834,2637.3,2637.0,3.79208381]
[1748963585839,1.834,2637.3,2637.1,3.79193016]
[1748963586822,2.85639076,2637.3,2636.9,3.79228706]
[1748963587202,1.4539,2637.2,2636.8,3.79240102]
[1748963587532,1.4539,2637.2,2636.9,3.79230603]
[1748963587934,1.4539,2637.2,2637.0,3.79216544]
[1748963588637,1.4539,2637.2,2636.9,3.7922551]
[1748963588840,2.54242908,2637.2,2636.9,3.7922551]
[1748963589248,2.54242908,2637.2,2636.8,3.79239578]
[1748963589249,2.54242908,2637.2,2636.8,3.79241998]
[1748963589453,4.81906713,2637.1,2636.6,3.79268633]
[1748963589600,4.76906713,2637.1,2636.6,3.79268633]
[1748963589801,0.73114962,2637.0,2636.1,0.02]
[1748963589998,10.84206713,2636.9,2636.6,3.79267492]
[1748963590505,6.573,2636.9,2636.8,3.79247572]
[1748963590707,2.54242908,2637.2,2636.6,3.79267492]
[1748963590708,2.54242908,2637.2,2636.6,3.79274299]
[1748963590907,6.573,2637.2,2637.1,3.79204429]
[1748963591113,1.834,2637.4,2637.3,3.79175672]
[1748963591338,8.406,2637.4,2637.3,3.79175672]
[1748963591543,8.406,2637.4,2637.2,3.79185674]
[1748963591843,1.834,2637.4,2637.3,3.79175672]
[1748963592142,8.406,2637.4,2637.2,3.79182684]
[1748963592903,8.406,2637.4,2636.8,0.50752481]
[1748963593136,8.406,2637.4,2637.2,3.79180534]
[1748963593544,8.406,2637.4,2636.8,0.50752481]
[1748963593748,8.406,2637.4,2637.2,3.79188549]
[1748963594746,8.406,2637.4,2637.1,3.7919045]
[1748963595245,8.406,2637.4,2636.7,3.79258439]
[1748963595543,8.406,2637.4,2637.2,3.79189185]
[1748963595743,8.406,2637.4,2637.1,3.79197784]
[1748963596131,10.21270763,2637.4,2637.0,3.79216157]
[1748963596462,10.21270763,2637.4,2636.9,3.79224283]
[1748963596744,8.406,2637.4,2636.2,10.36320443]
[1748963596941,8.406,2637.4,2636.9,3.79221742]
[1748963597245,8.406,2637.4,2636.8,3.79245366]
[1748963597450,1.6593,2637.3,2636.9,3.7923319]
[1748963597652,1.6593,2637.3,2636.7,3.79255852]
[1748963597653,1.4697,2637.2,2636.7,3.79255852]
[1748963597943,1.4697,2637.2,2636.9,3.7922538]
[1748963598331,1.4697,2637.2,2637.0,3.7920984]
[1748963598635,1.4697,2637.2,2636.2,3.7933356]
[1748963598636,1.4697,2637.2,2637.1,3.79204429]
[1748963598941,1.6593,2637.3,2637.1,3.79192088]
[1748963599343,1.00653,2637.2,2636.9,3.79225328]
[1748963599545,1.6593,2637.3,2637.0,3.79218494]
[1748963600009,1.6593,2637.3,2636.9,3.79219464]
[1748963600211,1.6593,2637.3,2637.0,3.79212333]
[1748963600410,1.6593,2637.3,2636.2,3.79324857]
[1748963600411,1.6593,2637.3,2637.1,3.79203512]
[1748963600611,1.6593,2637.3,2636.9,3.79224725]
[1748963600913,1.00653,2637.2,2636.4,3.79293217]
[1748963601116,1.6593,2637.3,2636.8,3.79237251]
[1748963601311,1.6593,2637.3,2636.9,3.79231252]
[1748963601763,1.5546,2637.2,2636.5,3.79284311]
[1748963601936,2.1046,2637.2,2636.6,3.79269499]
[1748963602139,0.55,2637.0,2636.5,3.79283481]
[1748963602456,6.567,2636.9,2636.6,3.79273047]
[1748963602620,8.401,2636.9,2636.5,3.79285374]
[1748963602819,9.328239,2636.9,2636.5,3.79285374]
[1748963603015,9.328239,2636.9,2636.6,3.79275171]
[1748963603421,9.328239,2636.9,2636.5,3.7928307]
[1748963603622,8.401,2636.9,2636.5,3.7928307]
[1748963604655,8.401,2636.9,2636.1,0.02]
[1748963604860,1.4894,2636.8,2636.5,3.79290334]
[1748963605270,1.4894,2636.8,2636.4,3.7930069]
[1748963605429,1.4894,2636.8,2636.1,0.02]
[1748963605624,1.53904,2636.7,2636.1,3.8134153]
[1748963605965,0.55,2636.5,2636.1,3.8134153]
[1748963606147,0.55,2636.5,2636.1,0.02]
[1748963606352,6.566,2636.4,2636.1,3.81347481]
[1748963606721,6.566,2636.4,2636.1,0.02]
[1748963606924,7.42654,2636.4,2636.1,0.02]
[1748963607379,1.4986,2636.2,2636.1,0.02]
[1748963607664,5.29193889,2636.2,2636.1,0.02]
[1748963607866,13.64099449,2636.2,2636.1,0.02]
[1748963608529,14.19099449,2636.2,2636.1,0.02]
[1748963608743,0.55,2635.7,2635.1,0.02]
[1748963608955,1.4848,2635.4,2635.1,0.02]
[1748963609254,0.55,2635.3,2635.1,0.02]
[1748963610632,8.399,2635.2,2635.1,3.81492239]
[1748963610829,1.4848,2635.4,2635.1,0.02]
[1748963611198,1.834,2635.7,2635.6,3.79420245]
[1748963611337,8.399,2635.7,2635.5,3.79429624]
[1748963611535,8.399,2635.7,2635.4,3.79441825]
[1748963611762,1.6021,2635.6,2635.4,3.79446852]
[1748963612265,1.6021,2635.6,2635.3,3.79463438]
[1748963612658,8.399,2635.7,2635.4,3.79448536]
[1748963612858,8.399,2635.7,2635.2,3.79468339]
[1748963613180,8.399,2635.7,2635.3,3.79453416]
[1748963613181,1.4449,2635.6,2635.3,3.79453416]
[1748963613347,1.4449,2635.6,2635.2,3.79465508]
[1748963613876,0.00457634,2635.4,2635.3,3.79463438]
[1748963614231,0.00457634,2635.4,2635.2,3.79469974]
[1748963614433,0.00457634,2635.4,2635.3,3.79463438]
[1748963620498,0.00457634,2635.4,2635.1,0.02]
[1748963620999,0.00457634,2635.4,2635.3,3.79463438]
[1748963622177,1.4859,2635.3,2635.1,0.02]
[1748963623310,6.561,2635.2,2635.1,3.81492239]
[1748963624016,0.00457634,2635.4,2635.3,3.79463438]
[1748963624308,6.56557634,2635.4,2635.3,3.79463438]
[1748963624482,0.00457634,2635.4,2635.3,3.79463438]
[1748963625584,0.00457634,2635.4,2635.3,4.2588935]
[1748963631716,0.00457634,2635.4,2635.3,12.2588935]
[1748963632698,0.00457634,2635.4,2635.3,12.8088935]
[1748963633117,0.00457634,2635.4,2635.3,29.22102173]
[1748963633514,0.00457634,2635.4,2635.3,20.83802173]
[1748963634637,0.00457634,2635.4,2635.3,15.67724246]
[1748963636427,0.00457634,2635.4,2635.3,16.22724246]
[1748963636802,8.192,2637.2,2635.4,3.79449039]
[1748963636803,1.5702,2636.9,2635.4,3.79449039]
[1748963637028,1.5702,2636.9,2636.4,3.79302274]
[1748963637609,1.5702,2636.9,2636.8,3.79247572]
[1748963637803,1.5702,2636.9,2636.7,3.79254896]
[1748963638135,1.5702,2636.9,2636.7,3.79248598]
[1748963638430,1.5702,2636.9,2635.5,8.06912823]
[1748963638630,1.5702,2636.9,2636.5,3.7928965]
[1748963638830,1.5702,2636.9,2636.4,3.79298443]
[1748963639397,1.5702,2636.9,2636.5,3.79276537]
[1748963639598,1.5702,2636.9,2636.6,3.79268989]
[1748963640442,1.5702,2636.9,2636.0,3.79359851]
[1748963640739,1.5702,2636.9,2636.3,3.79315801]
[1748963640946,1.5702,2636.9,2636.5,3.79281723]
[1748963641643,8.1222,2636.9,2636.6,3.79262429]
[1748963641843,0.81222,2636.8,2636.6,3.79262429]
[1748963642611,0.81222,2636.8,2636.5,3.79286854]
[1748963642806,0.81222,2636.8,2635.8,11.86290627]
[1748963643338,0.81222,2636.8,2636.6,3.79276233]
[1748963643710,0.81222,2636.8,2636.5,3.79283436]
[1748963643910,0.893442,2636.7,2636.5,3.79283436]
[1748963644249,0.893442,2636.7,2636.5,3.79277733]
[1748963644250,1.5113,2636.6,2636.5,3.79277733]
[1748963644457,1.5113,2636.8,2636.7,3.79253676]
[1748963645153,3.4251,2637.1,2637.0,3.79218809]
[1748963645751,3.4251,2637.1,2636.9,3.79222392]
[1748963646060,1.16171,2637.0,2636.8,3.79237469]
[1748963646219,1.16171,2637.0,2636.9,3.7923319]
[1748963646920,3.4251,2637.1,2637.0,3.79218809]
[1748963647962,1.497,2637.5,2636.8,3.79237936]
[1748963648261,8.045,2637.5,2637.2,3.79182797]
[1748963648627,1.497,2637.5,2637.3,3.79175403]
[1748963650369,1.6452,2637.9,2637.7,3.79110682]
[1748963650572,1.6452,2637.9,2635.6,0.58707744]
[1748963650724,6.547,2637.8,2637.5,3.79136943]
[1748963650926,0.81922,2637.7,2637.4,3.79161268]
[1748963651387,0.81922,2637.7,2637.6,3.79132544]
[1748963651872,0.81922,2637.7,2637.5,3.79139419]
[1748963652070,0.02,2637.9,2637.8,3.79103798]
[1748963663219,0.02,2637.9,2637.8,8.05409839]
[1748963663580,0.02,2637.9,2637.8,12.3171588]
[1748963664220,0.02,2637.9,2637.8,3.79103798]
[1748963664524,0.02,2637.9,2637.8,8.81231812]
[1748963665903,0.02,2637.9,2637.8,13.07537853]
[1748963666423,0.02,2638.9,2638.8,3.78960133]
[1748963667192,0.02,2638.9,2638.5,3.78998295]
[1748963667397,1.5133,2638.8,2638.6,3.78977177]
[1748963667700,1.5133,2638.8,2638.7,3.78974495]
[1748963668523,1.5133,2638.7,2638.1,3.79058607]
[1748963668694,1.5133,2638.5,2637.5,3.79146919]
[1748963668890,2.367,2638.6,2637.5,3.79146919]
[1748963668891,1.6199,2638.3,2637.5,3.79146919]
[1748963669094,1.6199,2638.3,2638.0,3.7907164]
[1748963669329,1.6199,2638.3,2637.8,3.7909293]
[1748963669527,1.6199,2638.3,2638.1,3.79050049]
[1748963669690,1.820693,2638.3,2638.1,3.79050049]
[1748963670396,1.820693,2638.3,2637.4,3.79161295]
[1748963670597,1.820693,2638.3,2638.1,3.79053915]
[1748963673035,1.820693,2638.3,2638.0,3.79068143]
[1748963673910,1.820693,2638.3,2637.3,12.36450632]
[1748963673911,1.820693,2638.3,2637.9,3.79083892]
[1748963674095,1.4667,2638.1,2637.2,3.79179878]
[1748963674294,1.4667,2638.1,2637.5,3.79140499]
[1748963674295,1.4667,2637.9,2637.5,3.79140499]
[1748963674722,1.4667,2637.9,2637.6,3.7913192]
[1748963676812,1.4667,2637.9,2637.5,3.7913528]
[1748963677014,1.4667,2637.9,2637.4,3.79154573]
[1748963677535,1.5525,2637.7,2636.9,3.79220102]
[1748963677737,1.5525,2637.7,2637.3,3.79169367]
[1748963677959,1.5525,2637.7,2637.6,3.79132544]
[1748963678711,1.5525,2637.7,2637.4,3.79159448]
[1748963679104,1.5525,2637.7,2637.3,3.7917416]
[1748963679299,1.5525,2637.7,2637.5,3.79145251]
[1748963679967,1.5525,2637.7,2637.6,3.79132544]
[1748963680754,1.5525,2637.7,2637.5,3.79140253]
[1748963680959,1.5525,2637.7,2637.5,3.79146919]
[1748963681253,1.5525,2637.7,2637.6,3.79132544]
[1748963682660,1.5525,2637.7,2637.5,3.79139554]
[1748963682979,1.5525,2637.7,2637.6,3.79132544]
[1748963684476,1.71647,2638.0,2637.7,3.79108444]
[1748963684638,1.84416774,2637.9,2637.7,3.79108444]
[1748963684976,1.5148,2638.0,2637.8,3.79097059]
[1748963686363,1.5148,2638.0,2637.7,3.7911228]
[1748963686660,0.6,2637.8,2637.7,3.7911228]
[1748963687271,0.6,2637.8,2637.6,3.7913134]
[1748963687476,0.6,2637.8,2637.1,6.529]
[1748963687477,0.6,2637.8,2637.5,3.79137479]
[1748963687687,0.6,2637.8,2637.1,3.61184004]
[1748963687894,0.6,2637.8,2637.5,3.79137487]
[1748963688682,0.6,2637.8,2637.6,3.79128171]
[1748963688993,0.6,2637.8,2637.6,3.79123588]
[1748963689216,0.6,2637.8,2637.2,3.7919005]
[1748963689490,0.6,2637.8,2637.7,3.79118171]
[1748963691283,0.6,2637.8,2637.7,8.0551045]
[1748963693253,0.6,2637.8,2637.7,3.79118171]
[1748963694284,1.6231,2638.3,2638.0,3.79062589]
[1748963694610,1.6231,2638.3,2638.1,3.79060204]
[1748963694889,1.6231,2638.3,2638.0,3.79067326]
[1748963695213,1.6231,2638.3,2638.0,3.79073429]
[1748963695377,1.6231,2638.3,2637.9,3.79086678]
[1748963696070,1.6231,2638.3,2638.0,3.79067841]
[1748963696266,1.6231,2638.3,2637.9,3.79081192]
[1748963696585,1.6231,2638.3,2638.0,3.79074754]
[1748963697725,1.6231,2638.3,2637.8,3.79102372]
[1748963697881,1.6231,2638.3,2637.9,3.79080323]
[1748963698387,1.6231,2638.3,2637.8,3.79095773]
[1748963699297,1.6231,2638.3,2637.7,3.79109837]
[1748963699688,1.4831,2638.0,2637.7,3.79109837]
[1748963700323,1.69141,2638.0,2637.4,3.79154243]
[1748963700540,1.69141,2638.0,2637.4,3.79154109]
[1748963701226,1.5802,2637.9,2637.3,3.79174413]
[1748963701395,3.03131551,2637.9,2637.3,3.79174413]
[1748963701727,1.6024,2637.8,2637.3,3.79174413]
[1748963702610,1.6024,2637.8,2636.9,3.7923319]
[1748963703120,1.6024,2637.8,2637.2,3.79179032]
[1748963703322,1.6024,2637.8,2637.3,3.79172539]
[1748963703524,2.76178255,2637.8,2637.3,3.79172539]
[1748963703927,1.5673,2637.7,2637.0,3.79212505]
[1748963704111,1.5416,2637.5,2637.1,3.79202787]
[1748963704299,1.5416,2637.5,2636.9,3.79225095]
[1748963704513,1.5416,2637.3,2636.9,3.79219072]
[1748963704713,1.5416,2637.3,2637.1,3.79200925]
[1748963705034,1.5416,2637.3,2637.0,3.79216093]
[1748963705035,1.5416,2637.3,2637.0,3.79213466]
[1748963706439,1.5416,2637.3,2636.5,8.06256029]
[1748963706603,1.5416,2637.3,2637.0,3.79205448]
[1748963707219,1.5416,2637.3,2636.9,3.7922527]
[1748963707436,1.5416,2637.3,2636.7,3.79255708]
[1748963707628,1.5416,2637.3,2636.7,3.79251963]
[1748963708140,1.5472,2637.1,2636.7,3.79259589]
[1748963708839,1.5472,2637.1,2636.1,0.02]
[1748963709041,1.5472,2637.1,2636.1,3.81345501]
[1748963709240,1.5472,2637.1,2636.5,3.79284013]
[1748963709424,0.253366,2637.0,2636.5,3.79284013]
[1748963709748,0.253366,2637.0,2636.6,3.79271879]
[1748963711062,0.253366,2637.0,2636.5,3.79282836]
[1748963711215,1.4532,2636.9,2636.5,3.79282836]
[1748963711986,1.4532,2636.9,2636.4,3.79303813]
[1748963712141,1.4532,2636.9,2636.6,3.79263468]
[1748963712349,1.4532,2636.9,2636.7,3.79256833]
[1748963712526,1.4532,2636.9,2636.7,3.7926065]
[1748963712827,1.4532,2636.9,2636.7,3.79258779]
[1748963713031,1.4532,2636.9,2636.6,3.79270041]
[1748963713225,1.4532,2636.9,2636.5,3.79284686]
[1748963713422,1.4532,2636.9,2636.6,3.79266642]
[1748963714613,1.4532,2636.9,2636.5,3.79276469]
[1748963714956,1.585,2637.5,2636.8,4.26845975]
[1748963715154,1.585,2637.5,2637.4,8.0600727]
[1748963715447,3.387,2637.7,2637.3,3.79175672]
[1748963715857,3.387,2637.7,2637.2,8.06028571]
[1748963716162,3.387,2637.7,2637.4,3.79156936]
[1748963716365,1.585,2637.7,2637.5,3.79144461]
[1748963716582,1.802,2638.0,2637.8,3.79102859]
[1748963716857,1.802,2638.0,2637.3,3.79168687]
[1748963717069,1.58,2637.9,2637.3,3.79163178]
[1748963717219,0.3382,2637.8,2637.3,3.79163178]
[1748963717663,1.5485,2637.7,2637.4,3.79146957]
[1748963717884,1.5485,2637.7,2637.2,3.79182311]
[1748963718162,1.5485,2637.7,2637.3,3.79168275]
[1748963718457,1.5485,2637.7,2637.1,3.79202763]
[1748963718619,1.5326,2638.2,2638.1,3.79057562]
[1748963718814,1.5326,2638.2,2637.9,3.79081895]
[1748963719058,1.5326,2638.2,2638.0,3.79075056]
[1748963719245,1.5326,2638.2,2638.1,3.79060687]
[1748963719460,1.5326,2638.2,2638.0,3.79068274]
[1748963720178,1.5168,2638.4,2638.0,3.79073115]
[1748963720347,1.5168,2638.4,2638.0,3.79066951]
[1748963720722,1.5168,2638.4,2637.5,11.85861671]
[1748963720921,1.5168,2638.4,2638.1,3.79059103]
[1748963721371,1.5168,2638.4,2638.1,3.79049627]
[1748963721748,1.5168,2638.4,2637.6,4.97714741]
[1748963721958,1.4543,2638.6,2637.8,8.06726697]
[1748963722140,1.4543,2638.6,2638.2,3.79035431]
[1748963723560,1.4543,2638.6,2638.3,3.79024627]
[1748963723862,1.4543,2638.6,2638.3,3.79027011]
[1748963724030,1.4543,2638.6,2638.2,3.79040842]
[1748963725756,1.4543,2638.6,2637.6,1.18586167]
[1748963725961,1.4545,2638.5,2637.7,3.79107061]
[1748963726134,1.4545,2638.3,2637.2,11.85908904]
[1748963726334,0.20045,2638.2,2637.7,3.79114858]
[1748963726665,0.20045,2638.2,2637.8,3.79102503]
[1748963727379,0.20045,2638.2,2637.5,8.06726697]
[1748963727527,1.5087,2638.6,2637.8,8.06726697]
[1748963727931,1.5087,2638.4,2637.2,1.26658157]
[1748963728285,16.76209616,2639.0,2637.1,0.3824377]
[1748963728286,1.582,2638.2,2637.6,3.79132544]
[1748963728581,1.582,2638.2,2638.1,3.79060687]
[1748963729025,1.5047,2638.7,2637.7,11.85838506]
[1748963729231,3.3057,2638.7,2638.4,3.7900887]
[1748963729473,4.28937,2638.7,2638.2,3.79043004]
[1748963729771,4.28937,2638.7,2638.1,3.79055788]
[1748963729772,1.6044,2638.6,2638.0,3.79071022]
[1748963729932,1.6044,2638.6,2637.4,8.06726697]
[1748963730133,1.6115,2638.4,2637.9,3.79082447]
[1748963730789,1.6115,2638.4,2637.9,3.79078353]
[1748963730989,1.6115,2638.4,2637.8,3.79100117]
[1748963731153,1.6115,2638.4,2637.9,3.79086779]
[1748963731597,1.6115,2638.4,2637.9,3.79089199]
[1748963731770,0.2050407,2638.3,2637.9,3.79089199]
[1748963731960,0.2050407,2638.3,2638.0,3.79074173]
[1748963732381,0.2050407,2638.3,2638.0,3.79067925]
[1748963732801,1.5223,2637.9,2636.7,4.30258283]
[1748963732960,9.5223,2637.2,2636.6,3.79272811]
[1748963733160,8.0,2637.0,2636.3,3.79316156]
[1748963733357,8.0,2637.0,2636.4,3.79300275]
[1748963733756,9.60323,2637.0,2636.2,3.79328685]
[1748963733975,9.60323,2637.0,2636.4,3.79290949]
[1748963734169,9.98838583,2637.0,2636.5,3.79289114]
[1748963734371,6.509,2637.0,2636.2,3.79333889]
[1748963734575,6.509,2637.0,2636.7,3.79252853]
[1748963734771,6.509,2637.0,2636.1,0.02]
[1748963734772,6.509,2637.0,2636.6,3.79270158]
[1748963735065,1.5942,2637.7,2637.4,3.79152822]
[1748963735374,1.5942,2637.7,2636.7,11.85985971]
[1748963735375,1.5933,2638.1,2637.1,3.79204429]
[1748963735705,1.5933,2638.1,2637.7,3.79109449]
[1748963735859,1.5933,2638.1,2637.6,3.79127903]
[1748963736205,1.5933,2638.1,2637.4,3.79158195]
[1748963736372,8.1033,2638.1,2637.3,1.802]
[1748963736572,9.35056999,2638.1,2637.5,3.79146369]
[1748963736772,9.35056999,2638.1,2637.6,3.79131892]
[1748963736773,2.84056999,2638.1,2637.6,3.79131892]
[1748963736961,1.5933,2638.1,2637.8,3.79099544]
[1748963737165,1.5933,2638.1,2637.7,3.79110048]
[1748963737363,1.5933,2638.1,2637.9,3.79082194]
[1748963737700,1.5933,2638.1,2637.9,3.79087537]
[1748963737901,3.7896698,2638.8,2637.9,0.37908754]
[1748963737902,1.5589,2638.8,2637.9,0.37908754]
[1748963738074,0.31586992,2638.7,2638.1,3.79051279]
[1748963738282,1.5402,2638.6,2638.0,3.79067405]
[1748963738604,0.31586992,2638.5,2638.0,3.79067405]
[1748963739423,0.31586992,2638.5,2637.3,11.8589607]
[1748963739424,10.104,2638.4,2636.8,3.79242484]
[1748963739565,11.71783647,2638.3,2637.6,3.7912474]
[1748963739772,6.82412278,2638.2,2637.7,3.79111468]
[1748963740090,0.31512278,2638.1,2637.7,3.79111468]
[1748963740294,0.31512278,2638.1,2637.6,3.7912653]
[1748963740501,0.31512278,2638.1,2637.7,3.79105896]
[1748963740807,2.13770643,2638.1,2637.6,3.79125585]
[1748963740970,1.82258365,2638.1,2637.5,3.79140308]
[1748963741168,1.4532,2638.0,2637.5,3.79140308]
[1748963741406,0.32757837,2637.9,2637.5,3.79140308]
[1748963742009,0.32757837,2637.9,2637.5,3.79139557]
[1748963742298,0.32757837,2637.9,2637.6,3.79130374]
[1748963742697,0.32757837,2637.9,2637.5,3.79138346]
[1748963742874,0.32757837,2637.9,2637.6,3.79121435]
[1748963743273,1.4532,2638.0,2637.3,8.06726697]
[1748963743513,1.4532,2638.0,2637.9,3.79089427]
[1748963743707,1.4532,2638.0,2637.8,3.79097951]
[1748963744518,1.4532,2638.0,2637.6,3.79126559]
[1748963745112,1.4532,2638.0,2637.3,5.58574759]
[1748963745336,5.58377325,2638.7,2637.3,5.58574759]
[1748963745337,1.4945,2638.7,2637.8,8.06726697]
[1748963745492,1.4945,2638.7,2638.2,3.79042763]
[1748963745691,1.4945,2638.7,2638.1,3.79052628]
[1748963745902,1.4945,2638.7,2637.7,1.794]
[1748963746133,1.4789,2638.5,2638.0,3.79070507]
[1748963746424,1.4789,2638.5,2638.1,3.7905732]
[1748963746644,1.4789,2638.5,2638.0,3.79068099]
[1748963747011,1.4789,2638.5,2638.1,3.7905304]
[1748963747225,0.23162248,2638.4,2638.1,3.7905304]
[1748963748132,0.23162248,2638.4,2637.9,3.79084759]
[1748963748341,0.23162248,2638.4,2637.8,3.79093908]
[1748963748558,0.78162248,2638.4,2637.7,3.79110808]
[1748963748717,0.55,2638.2,2637.6,3.79124505]
[1748963749035,1.545,2637.9,2637.3,3.79163075]
[1748963749238,1.545,2637.9,2637.0,3.79214263]
[1748963749436,1.545,2637.9,2637.1,0.37921426]
[1748963749640,6.505,2637.8,2637.2,3.79182816]
[1748963749800,6.505,2637.8,2637.3,3.79173769]
[1748963750000,6.505,2637.8,2636.8,1.794]
[1748963750232,0.805,2637.7,2637.3,3.79171833]
[1748963753099,0.805,2637.7,2637.4,3.79159405]
[1748963753310,6.505,2637.8,2637.4,3.79159405]
[1748963753746,6.505,2637.8,2637.4,3.79155759]
[1748963754221,6.505,2637.8,2637.5,3.79146375]
[1748963754422,1.545,2637.9,2637.5,3.79146375]
[1748963754629,8.05,2637.9,2637.5,3.79146375]
[1748963754827,8.91,2637.9,2637.4,3.79153161]
[1748963755141,8.909,2637.9,2637.5,3.79144699]
[1748963755321,8.909,2637.9,2637.4,3.79156923]
[1748963755661,5.3134576,2637.8,2637.0,3.79210751]
[1748963755804,1.5224,2637.7,2637.0,3.79210751]
[1748963756004,1.5224,2637.7,2637.0,0.37921075]
[1748963756266,8.0,2637.9,2637.6,3.79132544]
[1748963756427,1.5224,2638.0,2637.1,8.06726697]
[1748963756739,1.5224,2638.0,2637.7,3.79108246]
[1748963758135,1.5224,2638.0,2637.8,3.79096109]
[1748963758342,1.5224,2638.0,2637.7,3.79114435]
[1748963758537,1.5224,2638.0,2637.6,3.79124189]
[1748963758742,1.5224,2638.0,2637.5,3.79140164]
[1748963759040,1.5224,2638.0,2637.4,3.7915769]
[1748963759637,1.5224,2638.0,2637.5,3.79145841]
[1748963760520,2.32504,2638.0,2636.9,9.794]
[1748963760723,2.32504,2638.0,2637.2,3.79186657]
[1748963761028,1.6312,2637.8,2637.3,3.79167986]
[1748963761233,1.6312,2637.8,2637.2,3.79182594]
[1748963761428,1.6312,2637.8,2637.3,3.7916838]
[1748963761632,2.729584,2637.8,2637.3,3.7916838]
[1748963761946,1.6312,2637.8,2636.8,3.79247572]
[1748963762243,1.6312,2637.8,2637.3,3.79169428]
[1748963762442,1.6312,2637.8,2637.1,3.79197049]
[1748963762646,1.6312,2637.8,2637.2,3.79188722]
[1748963763148,1.6312,2637.8,2637.1,3.79197956]
[1748963763348,0.96312,2637.7,2637.2,3.79188219]
[1748963764941,0.96312,2637.7,2637.2,3.7919005]
[1748963765613,0.96312,2637.7,2637.1,3.79197847]
[1748963765809,0.96312,2637.7,2636.1,0.40202731]
[1748963765810,3.79150089,2637.5,2636.1,0.40202731]
[1748963766130,3.79150089,2637.5,2636.4,3.79296384]
[1748963766131,1.5428,2637.1,2636.4,3.79296384]
[1748963766306,1.5428,2637.1,2636.3,3.79314403]
[1748963766509,1.5428,2637.1,2636.4,3.79293648]
[1748963766711,0.55,2637.0,2636.2,3.79325986]
[1748963766948,1.5331,2636.9,2636.2,3.79323097]
[1748963767146,1.5331,2636.9,2636.3,3.79316828]
[1748963767354,6.502,2636.8,2636.3,3.79316828]
[1748963767554,1.5709,2636.7,2635.4,0.19773464]
[1748963767755,1.5709,2636.3,2635.1,3.81482235]
[1748963768045,1.5709,2636.1,2635.2,3.79477838]
[1748963768245,1.5709,2636.1,2635.3,3.79463438]
[1748963768418,1.5709,2636.1,2635.1,8.08726697]
[1748963768419,1.5709,2636.1,2635.4,0.37946344]
[1748963768621,1.5709,2636.1,2635.6,3.79415998]
[1748963768833,1.5709,2636.1,2635.5,3.79425968]
[1748963769011,1.5709,2636.1,2636.0,3.7936267]
[1748963769414,1.5709,2636.1,2635.9,3.79369205]
[1748963769613,1.5709,2636.1,2635.8,3.79384254]
[1748963769951,1.5709,2636.1,2635.4,4.98058002]
[1748963769952,1.5709,2636.1,2635.6,3.79411057]
[1748963770120,1.5709,2636.1,2635.4,4.98064404]
[1748963770320,1.5709,2636.1,2635.7,3.79398596]
[1748963770549,1.5709,2636.1,2635.8,3.79387662]
[1748963770741,8.0719,2636.1,2635.9,3.79375708]
[1748963770916,1.5709,2636.1,2636.0,3.7936267]
[1748963771116,1.5709,2636.1,2635.9,3.79369285]
[1748963771316,1.5709,2636.1,2635.8,3.79379432]
[1748963772318,2.37809,2636.1,2635.1,3.8148449]
[1748963772727,1.5602,2636.0,2635.1,0.02]
[1748963773053,3.3502,2635.9,2635.4,3.79444533]
[1748963773225,3.3502,2635.9,2635.3,3.79456058]
[1748963773436,1.5717,2635.8,2635.3,3.79456058]
[1748963773639,6.501,2635.7,2635.3,3.79456058]
[1748963773820,6.501,2635.7,2635.1,0.02]